fUSD/lending_fUSD_20250107
["ID","MTS","AMOUNT","RATE_DAILY","PERIOD"]
[347994102,1736262659822,-718.87,0.00010787,2]
[347994104,1736262659839,-500.0,0.00010787,2]
[347994105,1736262659849,-1075.72,0.00010787,2]
[347994107,1736262659860,-500.0,0.00010787,2]
[347994109,1736262659874,-564.1,0.00010787,2]
[347994111,1736262659884,-500.0,0.00010787,2]
[347994113,1736262659894,-618.25,0.00010787,2]
[347994115,1736262659905,-683.56,0.00010787,2]
[347994117,1736262659916,-500.0,0.00010787,2]
[347994119,1736262659927,-1339.73,0.00010787,2]
[347994121,1736262659938,-849.57,0.00010787,2]
[347994123,1736262659948,-500.0,0.00010787,2]
[347994125,1736262659958,-500.0,0.00010787,2]
[347994127,1736262659970,-500.0,0.00010787,2]
[347994129,1736262659981,-872.25,0.00010787,2]
[347994131,1736262659991,-639.01,0.00010787,2]
[347994133,1736262660002,-895.49,0.00010787,2]
[347994135,1736262660013,-801.58,0.00010787,2]
[347994137,1736262660024,-1413.01,0.00010787,2]
[347994139,1736262660034,-1588.41,0.00010787,2]
[347994141,1736262660044,-1647.51,0.00010787,2]
[347994143,1736262660054,-500.0,0.00010787,2]
[347994145,1736262660067,-586.67,0.00010787,2]
[347994147,1736262660081,-500.0,0.00010787,2]
[347994149,1736262660093,-1565.49,0.00010787,2]
[347994151,1736262660104,-500.0,0.00010787,2]
[347994153,1736262660116,-1101.5,0.00010787,2]
[347994155,1736262660126,-662.35,0.00010787,2]
[347994157,1736262660137,-500.0,0.00010787,2]
[347994159,1736262660147,-500.0,0.00010787,2]
[347994161,1736262660158,-500.0,0.00010787,2]
[347994163,1736262660169,-783.84,0.00010787,2]
[347994165,1736262660179,-735.55,0.00010787,2]
[347994167,1736262660190,-500.0,0.00010787,2]
[347994169,1736262660201,-500.0,0.00010787,2]
[347994171,1736262660212,-704.7,0.00010787,2]
[347994173,1736262660223,-500.0,0.00010787,2]
[347994175,1736262660233,-645.492016,0.00010787,2]
[347994177,1736262660244,-2312.12,0.00010787,2]
[347994178,1736262660254,-786.86,0.00010787,2]
[347994179,1736262660264,-533.34562174,0.00010787,2]
[347994180,1736262660274,-1308.72,0.00010787,2]
[347994181,1736262660285,-500.0,0.00010787,2]
[347994182,1736262660297,-558.3,0.00010787,2]
[347994183,1736262660306,-706.01,0.00010787,2]
[347994184,1736262660321,-500.0,0.00010787,2]
[347994185,1736262660331,-500.0,0.00010787,2]
[347994186,1736262660342,-500.0,0.00010787,2]
[347994187,1736262660354,-516.04,0.00010787,2]
[347994188,1736262660364,-811.47,0.00010787,2]
[347994189,1736262660375,-511.46,0.00010787,2]
[347994190,1736262660386,-500.0,0.00010787,2]
[347994192,1736262660396,-865.69,0.00010787,2]
[347994194,1736262660407,-500.0,0.00010787,2]
[347994196,1736262660418,-500.0,0.00010787,2]
[347994198,1736262660428,-677.006499,0.00010787,2]
[347994200,1736262660437,-500.0,0.00010787,2]
[347994202,1736262660448,-801.01,0.00010787,2]
[347994204,1736262660458,-510.8,0.00010787,2]
[347994206,1736262660470,-690.28,0.00010787,2]
[347994208,1736262660482,-961.28,0.00010787,2]
[347994210,1736262660493,-1877.25,0.00010787,2]
[347994212,1736262660504,-500.0,0.00010787,2]
[347994214,1736262660514,-564.06,0.00010787,2]
[347994216,1736262660526,-717.82,0.00010787,2]
[347994218,1736262660537,-500.0,0.00010787,2]
[347994220,1736262660548,-648.62,0.00010787,2]
[347994222,1736262660559,-6268.49,0.00010787,2]
[347994224,1736262660575,-934.29,0.00010787,2]
[347994226,1736262660586,-816.82,0.00010787,2]
[347994228,1736262660596,-876.26,0.00010787,2]
[347994230,1736262660607,-500.0,0.00010787,2]
[347994232,1736262660617,-710.35,0.00010787,2]
[347994234,1736262660629,-500.0,0.00010787,2]
[347994236,1736262660640,-500.0,0.00010787,2]
[347994238,1736262660650,-500.0,0.00010787,2]
[347994239,1736262660661,-729.98,0.00010787,2]
[347994240,1736262660671,-500.0,0.00010787,2]
[347994241,1736262660681,-1400.56,0.00010787,2]
[347994242,1736262660691,-1830.12,0.00010787,2]
[347994243,1736262660701,-500.0,0.00010787,2]
[347994244,1736262660711,-2212.76,0.00010787,2]
[347994245,1736262660721,-744.63,0.00010787,2]
[347994246,1736262660731,-652.37,0.00010787,2]
[347994247,1736262660741,-534.71,0.00010787,2]
[347994248,1736262660751,-500.0,0.00010787,2]
[347994249,1736262660760,-2286.31,0.00010787,2]
[347994250,1736262660770,-518.3,0.00010787,2]
[347994251,1736262660779,-1914.85,0.00010787,2]
[347994252,1736262660789,-500.0,0.00010787,2]
[347994253,1736262660799,-646.22,0.00010787,2]
[347994254,1736262660809,-500.0,0.00010787,2]
[347994255,1736262660824,-500.0,0.00010787,2]
[347994256,1736262660837,-982.11,0.00010787,2]
[347994257,1736262660848,-1623.91,0.00010787,2]
[347994258,1736262660858,-500.0,0.00010787,2]
[347994259,1736262660868,-500.0,0.00010787,2]
[347994260,1736262660879,-996.79,0.00010787,2]
[347994261,1736262660888,-1471.95,0.00010787,2]
[347994262,1736262660898,-901.87,0.00010787,2]
[347994263,1736262660909,-500.0,0.00010787,2]
[347994264,1736262660919,-1372.49,0.00010787,2]
[347994265,1736262660929,-1464.12,0.00010787,2]
[347994266,1736262660939,-504.47,0.00010787,2]
[347994267,1736262660949,-500.0,0.00010787,2]
[347994268,1736262660959,-595.29,0.00010787,2]
[347994270,1736262660969,-500.0,0.00010787,2]
[347994272,1736262660979,-626.19,0.00010787,2]
[347994274,1736262660988,-827.13,0.00010787,2]
[347994276,1736262660998,-1176.78,0.00010787,2]
[347994278,1736262661008,-596.4,0.00010787,2]
[347994280,1736262661018,-500.0,0.00010787,2]
[347994282,1736262661027,-500.0,0.00010787,2]
[347994284,1736262661036,-554.87,0.00010787,2]
[347994286,1736262661046,-632.63,0.00010787,2]
[347994288,1736262661054,-2207.57,0.00010787,2]
[347994290,1736262661064,-500.0,0.00010787,2]
[347994292,1736262661077,-1314.45,0.00010787,2]
[347994294,1736262661087,-1480.19,0.00010787,2]
[347994296,1736262661096,-1711.51,0.00010787,2]
[347994298,1736262661106,-500.0,0.00010787,2]
[347994300,1736262661116,-520.85,0.00010787,2]
[347994301,1736262661125,-958.66,0.00010787,2]
[347994302,1736262661136,-500.0,0.00010787,2]
[347994303,1736262661145,-1152.24,0.00010787,2]
[347994304,1736262661155,-1150.08,0.00010787,2]
[347994305,1736262661165,-1378.33,0.00010787,2]
[347994306,1736262661175,-666.68,0.00010787,2]
[347994307,1736262661185,-500.0,0.00010787,2]
[347994308,1736262661195,-500.0,0.00010787,2]
[347994311,1736262661205,-774.79,0.00010787,2]
[347994312,1736262661215,-4038.52,0.00010787,2]
[347994315,1736262661227,-4763.71,0.00010787,2]
[347994316,1736262661237,-563.38,0.00010787,2]
[347994318,1736262661246,-811.99,0.00010787,2]
[347994320,1736262661256,-936.82,0.00010787,2]
[347994322,1736262661266,-513.8,0.00010787,2]
[347994324,1736262661276,-842.07,0.00010787,2]
[347994326,1736262661287,-694.17,0.00010787,2]
[347994328,1736262661297,-1049.81,0.00010787,2]
[347994330,1736262661308,-500.0,0.00010787,2]
[347994332,1736262661322,-589.08,0.00010787,2]
[347994334,1736262661333,-567.97,0.00010787,2]
[347994336,1736262661344,-505.05,0.00010787,2]
[347994338,1736262661354,-1866.33,0.00010787,2]
[347994340,1736262661365,-738.58,0.00010787,2]
[347994342,1736262661376,-819.88,0.00010787,2]
[347994344,1736262661386,-530.13,0.00010787,2]
[347994346,1736262661396,-1830.99,0.00010787,2]
[347994348,1736262661407,-500.0,0.00010787,2]
[347994350,1736262661417,-5830.07,0.00010787,2]
[347994352,1736262661427,-647.88,0.00010787,2]
[347994354,1736262661438,-2668.27,0.00010787,2]
[347994356,1736262661448,-500.0,0.00010787,2]
[347994358,1736262661457,-500.0,0.00010787,2]
[347994360,1736262661470,-500.0,0.00010787,2]
[347994362,1736262661481,-851.11,0.00010787,2]
[347994364,1736262661492,-600.72,0.00010787,2]
[347994366,1736262661502,-3026.13,0.00010787,2]
[347994368,1736262661512,-7203.94,0.00010787,2]
[347994370,1736262661522,-542.15,0.00010787,2]
[347994372,1736262661532,-567.01,0.00010787,2]
[347994374,1736262661542,-500.0,0.00010787,2]
[347994376,1736262661552,-6045.92,0.00010787,2]
[347994378,1736262661563,-500.0,0.00010787,2]
[347994380,1736262661584,-500.0,0.00010787,2]
[347994382,1736262661595,-530.28,0.00010787,2]
[347994384,1736262661605,-16774.32,0.00010787,2]
[347994386,1736262661615,-751.05,0.00010787,2]
[347994388,1736262661625,-500.0,0.00010787,2]
[347994390,1736262661635,-1425.12,0.00010787,2]
[347994392,1736262661645,-500.0,0.00010787,2]
[347994395,1736262661655,-500.0,0.00010787,2]
[347994397,1736262661666,-2154.91,0.00010787,2]
[347994399,1736262661677,-500.0,0.00010787,2]
[347994401,1736262661688,-500.0,0.00010787,2]
[347994403,1736262661698,-1807.01,0.00010787,2]
[347994404,1736262661709,-624.54,0.00010787,2]
[347994406,1736262661719,-1865.17,0.00010787,2]
[347994408,1736262661730,-797.28,0.00010787,2]
[347994411,1736262661741,-512.91,0.00010787,2]
[347994413,1736262661751,-1595.23,0.00010787,2]
[347994414,1736262661761,-500.0,0.00010787,2]
[347994416,1736262661771,-960.45,0.00010787,2]
[347994418,1736262661781,-500.0,0.00010787,2]
[347994420,1736262661792,-1419.76,0.00010787,2]
[347994423,1736262661802,-500.0,0.00010787,2]
[347994424,1736262661813,-823.76,0.00010787,2]
[347994426,1736262661834,-2796.77,0.00010787,2]
[347994428,1736262661845,-500.0,0.00010787,2]
[347994430,1736262661857,-517.0,0.00010787,2]
[347994432,1736262661869,-970.76,0.00010787,2]
[347994434,1736262661882,-500.0,0.00010787,2]
[347994436,1736262661893,-500.0,0.00010787,2]
[347994438,1736262661904,-559.9,0.00010787,2]
[347994440,1736262661915,-500.0,0.00010787,2]
[347994442,1736262661927,-607.55,0.00010787,2]
[347994444,1736262661939,-1299.79,0.00010787,2]
[347994446,1736262661950,-500.0,0.00010787,2]
[347994448,1736262661961,-500.0,0.00010787,2]
[347994450,1736262661972,-881.28,0.00010787,2]
[347994452,1736262661983,-1569.73,0.00010787,2]
[347994454,1736262661994,-4772.5,0.00010787,2]
[347994456,1736262662005,-687.73,0.00010787,2]
[347994458,1736262662015,-500.0,0.00010787,2]
[347994460,1736262662025,-626.41,0.00010787,2]
[347994462,1736262662035,-1182.71,0.00010787,2]
[347994464,1736262662045,-1601.07,0.00010787,2]
[347994465,1736262662057,-1158.09,0.00010787,2]
[347994468,1736262662074,-500.0,0.00010787,2]
[347994470,1736262662084,-1676.54,0.00010787,2]
[347994472,1736262662095,-684.59,0.00010787,2]
[347994474,1736262662106,-1032.32,0.00010787,2]
[347994475,1736262662117,-3545.71,0.00010787,2]
[347994478,1736262662127,-1529.31,0.00010787,2]
[347994480,1736262662138,-644.33,0.00010787,2]
[347994482,1736262662148,-967.44,0.00010787,2]
[347994483,1736262662159,-2003.24,0.00010787,2]
[347994486,1736262662170,-1128.03,0.00010787,2]
[347994488,1736262662181,-919.47,0.00010787,2]
[347994490,1736262662191,-500.0,0.00010787,2]
[347994492,1736262662201,-500.0,0.00010787,2]
[347994494,1736262662211,-170.53611491,0.00010787,2]
[347994496,1736262662221,-9398.38,0.00010787,2]
[347994497,1736262662231,-640.40696026,0.00010787,2]
[347994500,1736262662241,-500.0,0.00010787,2]
[347994502,1736262662252,-2716.37,0.00010787,2]
[347994503,1736262662262,-1331.76,0.00010787,2]
[347994505,1736262662272,-500.0,0.00010787,2]
[347994507,1736262662282,-500.0,0.00010787,2]
[347994509,1736262662291,-623.8,0.00010787,2]
[347994511,1736262662301,-1298.0,0.00010787,2]
[347994513,1736262662311,-500.0,0.00010787,2]
[347994515,1736262662327,-500.0,0.00010788,2]
[347994517,1736262662336,-537.9,0.00010788,2]
[347994519,1736262662345,-500.0,0.00010788,2]
[347994521,1736262662355,-500.0,0.00010788,2]
[347994523,1736262662366,-500.0,0.00010788,2]
[347994525,1736262662376,-901.06,0.00010788,2]
[347994527,1736262662386,-500.0,0.00010788,2]
[347994529,1736262662396,-652.56,0.00010788,2]
[347994531,1736262662406,-824.46,0.00010788,2]
[347994533,1736262662416,-500.0,0.00010788,2]
[347994535,1736262662425,-500.0,0.00010788,2]
[347994537,1736262662434,-500.0,0.00010788,2]
[347994539,1736262662444,-500.0,0.00010788,2]
[347994541,1736262662453,-500.0,0.00010788,2]
[347994543,1736262662464,-500.0,0.00010788,2]
[347994545,1736262662474,-500.0,0.00010788,2]
[347994547,1736262662484,-500.0,0.00010788,2]
[347994549,1736262662494,-500.0,0.00010788,2]
[347994551,1736262662504,-500.0,0.00010788,2]
[347994553,1736262662514,-604.2,0.00010788,2]
[347994555,1736262662523,-500.0,0.00010788,2]
[347994557,1736262662533,-500.0,0.00010788,2]
[347994559,1736262662542,-500.0,0.00010788,2]
[347994560,1736262662551,-500.0,0.00010788,2]
[347994562,1736262662560,-500.0,0.00010788,2]
[347994564,1736262662577,-500.0,0.00010788,2]
[347994566,1736262662587,-578.14,0.00010788,2]
[347994568,1736262662598,-940.14,0.00010788,2]
[347994587,1736262662768,-500.0,0.00010788,2]
[347994589,1736262662795,-500.0,0.00010788,2]
[347994591,1736262662805,-501.04,0.00010788,2]
[347994593,1736262662815,-500.0,0.00010788,2]
[347994595,1736262662834,-500.0,0.00010788,2]
[347994597,1736262662844,-505.89,0.00010788,2]
[347994598,1736262662855,-500.0,0.00010788,2]
[347994599,1736262662865,-500.0,0.00010788,2]
[347994600,1736262662878,-238.60395125,0.00010788,2]
[347994601,1736262662888,-500.0,0.00010788,2]
[347994602,1736262662898,-500.0,0.00010788,2]
[347994603,1736262662909,-500.0,0.00010788,2]
[347994604,1736262662919,-736.32,0.00010788,2]
[347994605,1736262662930,-552.87,0.00010788,2]
[347994606,1736262662940,-500.0,0.00010788,2]
[347994607,1736262662951,-500.0,0.00010788,2]
[347994608,1736262662963,-500.0,0.00010788,2]
[347994609,1736262662974,-500.0,0.00010788,2]
[347994611,1736262662984,-505.07,0.00010788,2]
[347994613,1736262662994,-500.0,0.00010788,2]
[347994615,1736262663005,-500.0,0.00010788,2]
[347994617,1736262663016,-500.0,0.00010788,2]
[347994619,1736262663026,-500.0,0.00010788,2]
[347994621,1736262663037,-500.0,0.00010788,2]
[347994623,1736262663048,-500.0,0.00010788,2]
[347994625,1736262663059,-500.0,0.00010788,2]
[347994627,1736262663073,-500.0,0.00010788,2]
[347994629,1736262663085,-846.86,0.00010788,2]
[347994631,1736262663096,-2061.41,0.00010788,2]
[347994633,1736262663107,-500.0,0.00010788,2]
[347994635,1736262663119,-682.55,0.00010788,2]
[347994637,1736262663130,-500.0,0.00010788,2]
[347994639,1736262663142,-500.0,0.00010788,2]
[347994641,1736262663153,-500.0,0.00010788,2]
[347994643,1736262663165,-500.0,0.00010788,2]
[347994645,1736262663176,-500.0,0.00010788,2]
[347994647,1736262663187,-683.77,0.00010788,2]
[347994649,1736262663199,-500.0,0.00010788,2]
[347994651,1736262663210,-500.0,0.00010788,2]
[347994653,1736262663220,-640.2,0.00010788,2]
[347994655,1736262663231,-500.0,0.00010788,2]
[347994657,1736262663241,-534.29,0.00010788,2]
[347994659,1736262663252,-1388.3,0.00010788,2]
[347994661,1736262663262,-1312.22,0.00010788,2]
[347994663,1736262663272,-819.24,0.00010788,2]
[347994664,1736262663284,-4216.35,0.00010788,2]
[347994666,1736262663295,-500.0,0.00010788,2]
[347994668,1736262663305,-500.0,0.00010788,2]
[347994670,1736262663316,-1928.38,0.00010788,2]
[347994672,1736262663332,-1764.27,0.00010788,2]
[347994674,1736262663343,-500.0,0.00010788,2]
[347994676,1736262663354,-2935.1,0.00010788,2]
[347994678,1736262663366,-500.0,0.00010788,2]
[347994681,1736262663377,-500.0,0.00010788,2]
[347994682,1736262663388,-500.0,0.00010788,2]
[347994685,1736262663399,-500.0,0.00010788,2]
[347994687,1736262663410,-500.0,0.00010788,2]
[347994689,1736262663421,-875.04,0.00010788,2]
[347994691,1736262663433,-800.66,0.00010788,2]
[347994693,1736262663444,-619.1,0.00010788,2]
[347994695,1736262663455,-5574.76,0.00010788,2]
[347994697,1736262663468,-370.13029584,0.00010788,2]
[347994699,1736262663480,-264.43254862,0.00010788,2]
[347994701,1736262663492,-500.0,0.00010788,2]
[347994703,1736262663504,-810.19,0.00010788,2]
[347994705,1736262663515,-500.0,0.00010788,2]
[347994707,1736262663526,-500.0,0.00010788,2]
[347994709,1736262663537,-625.4,0.00010788,2]
[347994711,1736262663548,-5306.22,0.00010788,2]
[347994712,1736262663559,-581.45,0.00010788,2]
[347994715,1736262663577,-699.1,0.00010788,2]
[347994717,1736262663587,-500.0,0.00010788,2]
[347994719,1736262663598,-812.45,0.00010788,2]
[347994720,1736262663609,-517.57,0.00010788,2]
[347994722,1736262663619,-532.04,0.00010788,2]
[347994724,1736262663629,-595.89,0.00010788,2]
[347994726,1736262663639,-500.0,0.00010788,2]
[347994728,1736262663649,-500.0,0.00010788,2]
[347994731,1736262663659,-500.0,0.00010788,2]
[347994732,1736262663669,-1416.64,0.00010788,2]
[347994735,1736262663680,-913.13,0.00010788,2]
[347994737,1736262663693,-500.0,0.00010788,2]
[347994739,1736262663704,-982.41,0.00010788,2]
[347994741,1736262663715,-559.24,0.00010788,2]
[347994743,1736262663726,-500.0,0.00010788,2]
[347994745,1736262663738,-504.53,0.00010788,2]
[347994747,1736262663749,-740.91,0.00010788,2]
[347994749,1736262663760,-947.38,0.00010788,2]
[347994751,1736262663771,-3101.3,0.00010788,2]
[347994753,1736262663781,-567.13,0.00010788,2]
[347994755,1736262663793,-500.0,0.00010788,2]
[347994757,1736262663804,-547.23,0.00010788,2]
[347994759,1736262663814,-876.4,0.00010788,2]
[347994761,1736262663838,-500.0,0.00010788,2]
[347994763,1736262663859,-609.66,0.00010788,2]
[347994765,1736262663870,-524.12,0.00010788,2]
[347994767,1736262663880,-504.3,0.00010788,2]
[347994769,1736262663892,-1108.84,0.00010788,2]
[347994771,1736262663904,-500.0,0.00010788,2]
[347994773,1736262663916,-500.0,0.00010788,2]
[347994775,1736262663927,-812.27,0.00010788,2]
[347994777,1736262663939,-501.6,0.00010788,2]
[347994779,1736262663951,-500.0,0.00010788,2]
[347994781,1736262663962,-6774.01,0.00010788,2]
[347994783,1736262663973,-500.0,0.00010788,2]
[347994785,1736262663984,-893.01,0.00010788,2]
[347994787,1736262663997,-500.0,0.00010788,2]
[347994789,1736262664009,-847.04,0.00010788,2]
[347994791,1736262664020,-500.0,0.00010788,2]
[347994793,1736262664031,-500.0,0.00010788,2]
[347994795,1736262664043,-500.0,0.00010788,2]
[347994797,1736262664055,-500.0,0.00010788,2]
[347994799,1736262664072,-625.57,0.00010788,2]
[347994801,1736262664083,-1097.4,0.00010788,2]
[347994803,1736262664094,-500.0,0.00010788,2]
[347994805,1736262664105,-563.23,0.00010788,2]
[347994807,1736262664117,-615.57,0.00010788,2]
[347994809,1736262664131,-500.0,0.00010788,2]
[347994811,1736262664143,-1408.96,0.00010788,2]
[347994813,1736262664154,-500.0,0.00010788,2]
[347994814,1736262664166,-1021.92,0.00010788,2]
[347994815,1736262664177,-535.29,0.00010788,2]
[347994816,1736262664189,-500.0,0.00010788,2]
[347994817,1736262664201,-588.69,0.00010788,2]
[347994818,1736262664213,-920.61,0.00010788,2]
[347994819,1736262664224,-500.0,0.00010788,2]
[347994820,1736262664235,-1477.09,0.00010788,2]
[347994821,1736262664246,-928.78,0.00010788,2]
[347994822,1736262664257,-611.48,0.00010788,2]
[347994823,1736262664268,-597.33,0.00010788,2]
[347994824,1736262664278,-627.19,0.00010788,2]
[347994826,1736262664289,-500.0,0.00010788,2]
[347994828,1736262664300,-500.0,0.00010788,2]
[347994830,1736262664310,-850.24,0.00010788,2]
[347994832,1736262664327,-500.0,0.00010788,2]
[347994834,1736262664338,-500.0,0.00010788,2]
[347994836,1736262664348,-676.0,0.00010788,2]
[347994838,1736262664359,-500.0,0.00010788,2]
[347994839,1736262664369,-1833.42,0.00010788,2]
[347994841,1736262664380,-500.0,0.00010788,2]
[347994844,1736262664391,-966.83,0.00010788,2]
[347994845,1736262664402,-546.19,0.00010788,2]
[347994848,1736262664413,-585.7,0.00010788,2]
[347994849,1736262664423,-2074.96,0.00010788,2]
[347994852,1736262664434,-500.0,0.00010788,2]
[347994853,1736262664444,-518.31,0.00010788,2]
[347994856,1736262664456,-588.31,0.00010788,2]
[347994858,1736262664466,-500.0,0.00010788,2]
[347994859,1736262664478,-1505.25,0.00010788,2]
[347994862,1736262664490,-1855.72,0.00010788,2]
[347994864,1736262664502,-567.53,0.00010788,2]
[347994865,1736262664514,-1936.71,0.00010788,2]
[347994867,1736262664525,-990.5,0.00010788,2]
[347994869,1736262664535,-536.84,0.00010788,2]
[347994871,1736262664546,-500.0,0.00010789,2]
[347994873,1736262664556,-500.0,0.00010789,2]
[347994875,1736262664569,-500.0,0.00010789,2]
[347994877,1736262664584,-500.0,0.00010789,2]
[347994879,1736262664594,-552.75,0.00010789,2]
[347994881,1736262664605,-331.29768,0.00010789,2]
[347994883,1736262664616,-500.0,0.00010789,2]
[347994886,1736262664629,-500.0,0.00010789,2]
[347994887,1736262664641,-500.0,0.00010789,2]
[347994890,1736262664651,-662.78,0.00010789,2]
[347994891,1736262664662,-500.0,0.00010789,2]
[347994894,1736262664674,-500.0,0.00010789,2]
[347994896,1736262664685,-682.01,0.00010789,2]
[347994898,1736262664695,-500.0,0.00010789,2]
[347994900,1736262664706,-500.0,0.00010789,2]
[347994902,1736262664716,-500.0,0.00010789,2]
[347994904,1736262664726,-969.32,0.00010789,2]
[347994905,1736262664736,-500.0,0.00010789,2]
[347994908,1736262664746,-500.0,0.00010789,2]
[347994910,1736262664757,-578.01,0.00010789,2]
[347994912,1736262664767,-958.61,0.00010789,2]
[347994914,1736262664777,-500.0,0.0001079,2]
[347994915,1736262664787,-1994.2,0.0001079,2]
[347994917,1736262664797,-1829.52,0.0001079,2]
[347994919,1736262664807,-2261.8,0.0001079,2]
[347994922,1736262664823,-6767.08,0.0001079,2]
[347994924,1736262664840,-2787.82,0.0001079,2]
[347994926,1736262664851,-2741.97,0.0001079,2]
[347994928,1736262664862,-2973.81,0.0001079,2]
[347994929,1736262664872,-500.0,0.0001079,2]
[347994931,1736262664883,-894.31,0.0001079,2]
[347994933,1736262664893,-4586.92,0.0001079,2]
[347994935,1736262664904,-1401.32,0.0001079,2]
[347994937,1736262664916,-881.1,0.0001079,2]
[347994939,1736262664927,-2528.5,0.0001079,2]
[347994941,1736262664937,-1300.76,0.0001079,2]
[347994943,1736262664948,-10024.56,0.0001079,2]
[347994945,1736262664958,-2601.09,0.0001079,2]
[347994947,1736262664969,-5559.01,0.0001079,2]
[347994949,1736262664979,-2386.12,0.0001079,2]
[347994951,1736262664990,-1604.65,0.0001079,2]
[347994953,1736262665001,-2923.56,0.0001079,2]
[347994955,1736262665012,-6648.59,0.0001079,2]
[347994957,1736262665024,-1665.59,0.0001079,2]
[347994959,1736262665034,-500.0,0.0001079,2]
[347994961,1736262665045,-3246.3,0.0001079,2]
[347994963,1736262665056,-1337.5,0.0001079,2]
[347994965,1736262665073,-1338.74,0.0001079,2]
[347994967,1736262665084,-521.18,0.0001079,2]
[347994969,1736262665095,-5846.29,0.0001079,2]
[347994971,1736262665107,-1780.68,0.0001079,2]
[347994973,1736262665118,-2777.67,0.0001079,2]
[347994975,1736262665129,-2668.87,0.0001079,2]
[347994977,1736262665139,-2018.16,0.0001079,2]
[347994979,1736262665150,-3313.36,0.0001079,2]
[347994981,1736262665162,-1456.5,0.0001079,2]
[347994983,1736262665173,-4406.75,0.00010791,2]
[347994985,1736262665184,-3434.44,0.00010791,2]
[347994987,1736262665195,-1707.34,0.00010791,2]
[347994989,1736262665206,-3888.42,0.00010791,2]
[347994991,1736262665217,-604.3,0.00010791,2]
[347994992,1736262665229,-1690.08,0.00010791,2]
[347994995,1736262665241,-2219.59,0.00010791,2]
[347994997,1736262665253,-150.0,0.00010796,2]
[347994999,1736262665266,-1400.0,0.000108,3]
[347995001,1736262665277,-793.0,0.00010845,2]
[347995003,1736262665289,-927.79,0.00010862,2]
[347995005,1736262665301,-2874.3,0.00010862,2]
[347995007,1736262665313,-1637.0,0.00010862,2]
[347995009,1736262665331,-1965.95,0.00010862,2]
[347995011,1736262665343,-150.0,0.0001088,2]
[347995012,1736262665354,-905.80288172,0.0001088,2]
[347995014,1736262665365,-150.0,0.00010883,2]
[347995017,1736262665377,-1400.0,0.000109,3]
[347995018,1736262665388,-150.0,0.00010918,2]
[347995020,1736262665399,-150.0,0.00010923,2]
[347995022,1736262665410,-239086.95843978,0.00010934,2]
[347995024,1736262665422,-150.0,0.00010944,2]
[347995026,1736262665436,-150.0,0.00010948,2]
[347995028,1736262665447,-1456.87,0.00010958,2]
[347995030,1736262665458,-420.0,0.00010959,2]
[347995032,1736262665469,-486.0344051,0.00010999,2]
[347995034,1736262665482,-8716.12336548,0.00010999,2]
[347995036,1736262665495,-550.0,0.00011,2]
[347995038,1736262665507,-150.0,0.00011041,2]